fUSD/lending_fUSD_20240104
["ID","MTS","AMOUNT","RATE_DAILY","PERIOD"]
[310127562,1704376327156,-673.43,0.00036438,2]
[310127563,1704376327166,-780.4,0.00036438,2]
[310127564,1704376327176,-537.65,0.00036438,2]
[310127565,1704376327186,-1236.0,0.00036438,2]
[310127566,1704376327195,-837.04,0.00036438,2]
[310127567,1704376327205,-642.93,0.00036438,2]
[310127568,1704376327214,-1050.16,0.00036438,2]
[310127569,1704376327224,-969.09,0.00036438,2]
[310127570,1704376327234,-532.7,0.00036438,2]
[310127571,1704376327243,-626.59,0.00036438,2]
[310127572,1704376327254,-500.0,0.00036438,2]
[310127573,1704376327263,-517.15,0.00036438,2]
[310127574,1704376327273,-976.99,0.00036438,2]
[310127575,1704376327283,-833.15,0.00036438,2]
[310127576,1704376327292,-500.0,0.00036438,2]
[310127577,1704376327301,-517.44,0.00036438,2]
[310127578,1704376327311,-588.23,0.00036438,2]
[310127579,1704376327321,-2663.85,0.00036438,2]
[310127580,1704376327330,-524.48,0.00036438,2]
[310127581,1704376327340,-762.82,0.00036438,2]
[310127582,1704376327350,-3366.34,0.00036438,2]
[310127583,1704376327359,-516.2,0.00036438,2]
[310127584,1704376327370,-7010.51,0.00036438,2]
[310127585,1704376327379,-171.82571015,0.00036438,2]
[310127586,1704376327389,-500.0,0.00036438,2]
[310127587,1704376327398,-153.96,0.00036438,2]
[310127588,1704376327408,-102373.60806283,0.0003649,10]
[310127589,1704376327417,-1533.23381022,0.0003649,10]
[310127590,1704376327426,-157.40104,0.00036498,2]
[310127591,1704376327436,-500.0,0.000365,6]
[310127592,1704376327446,-316.84,0.00036505,2]
[310127593,1704376327457,-154.23478519,0.00036539,14]
[310127594,1704376327469,-1004.99886695,0.00036552,14]
[310127595,1704376327479,-150.0,0.00036554,2]
[310127596,1704376327490,-481.71,0.00036566,2]
[310127597,1704376327501,-150.0,0.00036599,2]
[310127598,1704376327510,-157.53,0.000366,3]
[310127599,1704376327520,-157.53,0.000366,3]
[310127600,1704376327529,-157.53,0.000366,3]
[310127601,1704376327539,-157.53,0.000366,3]
[310127602,1704376327549,-671.63,0.00036613,15]
[310127603,1704376327559,-1004.99886695,0.00036617,14]
[310127604,1704376327571,-2922.09,0.00036648,7]
[310127605,1704376327581,-2922.09,0.00036648,7]
[310127606,1704376327590,-1996.84,0.0003666,2]
[310127607,1704376327600,-151.36920844,0.00036662,14]
[310127608,1704376327610,-168.16466333,0.00036684,14]
[310127609,1704376327621,-1004.99886695,0.00036686,14]
[310127610,1704376327631,-36636.41,0.000367,7]
[310127611,1704376327640,-62201.05,0.000367,7]
[310127612,1704376327650,-514.3221,0.000367,2]
[310127613,1704376327660,-10033.75,0.000367,3]
[310127614,1704376327669,-10033.75,0.000367,3]
[310127615,1704376327678,-10033.75,0.000367,3]
[310127616,1704376327687,-10033.75,0.000367,3]
[310127617,1704376327698,-10033.75,0.000367,3]
[310127618,1704376327709,-10033.75,0.000367,3]
[310127619,1704376327720,-10033.75,0.000367,3]
[310127620,1704376327731,-10033.75,0.000367,3]
[310127621,1704376327740,-10033.75,0.000367,3]
[310127622,1704376327749,-10033.75,0.000367,3]
[310127623,1704376327760,-10033.75,0.000367,3]
[310127624,1704376327769,-10033.75,0.000367,3]
[310127625,1704376327779,-10033.75,0.000367,3]
[310127626,1704376327788,-10033.75,0.000367,3]
[310127627,1704376327799,-10033.75,0.000367,3]
[310127628,1704376327809,-10033.75,0.000367,3]
[310127629,1704376327818,-10033.75,0.000367,3]
[310127630,1704376327828,-10033.75,0.000367,3]
[310127631,1704376327838,-6788.915571,0.000367,3]
[310127632,1704376328624,-151.0,0.00031797,7]
[310127633,1704376328634,-151.0,0.00031799,7]
[310127634,1704376328643,-7059.26160677,0.00033609,2]
[310127635,1704376328655,-6568.32173593,0.00033609,2]
[310127636,1704376328666,-2292.49196976,0.00033609,2]
[310127637,1704376328676,-2150.53199557,0.00033609,2]
[310127638,1704376328685,-150.22,0.00034,2]
[310127639,1704376328694,-150.22,0.00034,2]
[310127640,1704376328703,-150.22,0.00034,2]
[310127641,1704376328712,-150.22,0.00034,2]
[310127642,1704376328721,-150.22,0.00034,2]
[310127643,1704376328730,-150.22,0.00034,2]
[310127644,1704376328740,-150.22,0.00034,2]
[310127645,1704376328749,-150.22,0.00034,2]
[310127646,1704376328758,-150.22,0.00034,2]
[310127647,1704376328767,-150.22,0.00034,2]
[310127648,1704376328776,-150.22,0.00034,2]
[310127649,1704376328787,-150.22,0.00034,2]
[310127650,1704376328797,-150.22,0.00034,2]
[310127651,1704376328806,-150.22,0.00034,2]
[310127652,1704376328815,-150.22,0.00034,2]
[310127653,1704376328824,-150.22,0.00034,2]
[310127654,1704376328833,-150.22,0.00034,2]
[310127655,1704376328843,-20.80985866,0.00034,2]
[310127656,1704376328855,-129.41014134,0.00034,2]
[310127657,1704376328865,-500.0,0.00035342,2]
[310127658,1704376328876,-500.0,0.00035616,2]
[310127659,1704376328885,-500.0,0.0003589,2]
[310127660,1704376328894,-500.0,0.00036164,2]
[310127661,1704376328904,-500.0,0.00036438,2]
[310127662,1704376328913,-864.34,0.00036438,2]
[310127663,1704376328922,-500.0,0.00036438,2]
[310127664,1704376328931,-1039.22570527,0.000367,3]
[310127665,1704376328951,-150.22,0.00034,2]
[310127666,1704376328961,-2205.60872373,0.000367,3]
[310127667,1704376328970,-3620.0949257,0.000367,3]
[310127668,1704376328983,-2420.92477412,0.000367,3]
[310127669,1704376329388,-500.0,0.00032876,2]
[310127670,1704376329398,-500.0,0.00032876,2]
[310127671,1704376329407,-500.0,0.00032876,2]
[310127672,1704376329417,-500.0,0.00032876,2]
[310127673,1704376329427,-500.0,0.0003315,2]
[310127674,1704376329437,-500.0,0.0003315,2]
[310127675,1704376329447,-568.20342516,0.0003315,2]
[310127676,1704376329456,-500.0,0.0003315,2]
[310127677,1704376329466,-500.0,0.00033424,2]
[310127678,1704376329476,-500.0,0.00033424,2]
[310127679,1704376329485,-500.0,0.00033424,2]
[310127680,1704376329495,-521.38585594,0.00033698,2]
[310127681,1704376329504,-476.26515774,0.00033698,2]
[310127682,1704376329514,-150.22,0.00034,2]
[310127683,1704376329523,-150.22,0.00034,2]
[310127684,1704376329532,-150.22,0.00034,2]
[310127685,1704376329542,-150.22,0.00034,2]
[310127686,1704376329551,-150.22,0.00034,2]
[310127687,1704376329561,-150.22,0.00034,2]
[310127688,1704376329571,-150.22,0.00034,2]
[310127689,1704376329580,-150.22,0.00034,2]
[310127690,1704376329590,-150.22,0.00034,2]
[310127691,1704376329599,-150.22,0.00034,2]
[310127692,1704376329609,-150.22,0.00034,2]
[310127693,1704376329619,-150.22,0.00034,2]
[310127694,1704376329628,-150.22,0.00034,2]
[310127695,1704376329638,-150.22,0.00034,2]
[310127696,1704376329647,-150.22,0.00034,2]
[310127697,1704376329656,-150.22,0.00034,2]
[310127698,1704376329666,-150.22,0.00034,2]
[310127699,1704376329676,-150.22,0.00034,2]
[310127700,1704376329684,-150.22,0.00034,2]
[310127701,1704376329694,-150.22,0.00034,2]
[310127702,1704376329703,-150.22,0.00034,2]
[310127703,1704376329714,-150.22,0.00034,2]
[310127704,1704376329724,-150.22,0.00034,2]
[310127705,1704376329738,-150.22,0.00034,2]
[310127706,1704376329747,-150.22,0.00034,2]
[310127707,1704376329756,-150.22,0.00034,2]
[310127708,1704376329765,-150.22,0.00034,2]
[310127709,1704376329776,-150.22,0.00034,2]
[310127710,1704376329786,-150.22,0.00034,2]
[310127711,1704376329796,-150.22,0.00034,2]
[310127712,1704376329805,-150.22,0.00034,2]
[310127713,1704376329816,-150.22,0.00034,2]
[310127714,1704376329826,-3992.73030018,0.000367,3]
[310127715,1704376329835,-8261.19699754,0.000367,2]
[310127716,1704376330004,-1105.69,0.00036712,2]
[310127717,1704376330014,-500.0,0.00036712,2]
[310127718,1704376330023,-550.1,0.00036712,2]
[310127719,1704376330033,-593.79685859,0.00036712,2]
[310127720,1704376330042,-688.97,0.00036712,2]
[310127721,1704376330052,-755.75,0.00036712,2]
[310127722,1704376330062,-1506.91,0.00036712,2]
[310127723,1704376330071,-500.0,0.00036712,2]
[310127724,1704376330082,-872.68,0.00036712,2]
[310127725,1704376330092,-500.0,0.00036712,2]
[310127726,1704376330101,-1266.42,0.00036712,2]
[310127727,1704376330111,-500.0,0.00036712,2]
[310127728,1704376330120,-500.0,0.00036712,2]
[310127729,1704376330130,-1122.66,0.00036712,2]
[310127730,1704376330139,-500.0,0.00036712,2]
[310127731,1704376330149,-500.0,0.00036712,2]
[310127732,1704376330158,-683.22,0.00036712,2]
[310127733,1704376330168,-559.7,0.00036712,2]
[310127734,1704376330177,-500.0,0.00036712,2]
[310127735,1704376330187,-500.0,0.00036712,2]
[310127736,1704376330197,-500.0,0.00036712,2]
[310127737,1704376330207,-1749.13,0.00036712,2]
[310127738,1704376330217,-503.48,0.00036712,2]
[310127739,1704376330227,-500.0,0.00036712,2]
[310127740,1704376330237,-533.31200471,0.00036712,2]
[310127741,1704376330246,-500.0,0.00036712,2]
[310127742,1704376330256,-531.48740586,0.00036712,2]
[310127743,1704376330266,-500.0,0.00036712,2]
[310127744,1704376330278,-500.0,0.00036712,2]
[310127745,1704376330288,-500.0,0.00036712,2]
[310127746,1704376330298,-500.0,0.00036712,2]
[310127747,1704376330308,-500.0,0.00036712,2]
[310127748,1704376330318,-500.0,0.00036712,2]
[310127749,1704376330328,-528.23,0.00036712,2]
[310127750,1704376330338,-689.08,0.00036712,2]
[310127751,1704376330348,-500.0,0.00036712,2]
[310127752,1704376330358,-500.0,0.00036712,2]
[310127753,1704376330369,-819.39,0.00036712,2]
[310127754,1704376330380,-501.43,0.00036712,2]
[310127755,1704376330390,-659.39,0.00036712,2]
[310127756,1704376330401,-500.0,0.00036712,2]
[310127757,1704376330411,-500.0,0.00036712,2]
[310127758,1704376330421,-417.37128449,0.00036712,2]
[310127759,1704376330431,-500.0,0.00036712,2]
[310127760,1704376330441,-2553.32,0.00036712,2]
[310127761,1704376330452,-604.64,0.00036712,2]
[310127762,1704376330463,-584.06,0.00036712,2]
[310127763,1704376330476,-681.98,0.00036712,2]
[310127764,1704376330488,-564.27,0.00036712,2]
[310127765,1704376330499,-500.0,0.00036712,2]
[310127766,1704376330511,-500.0,0.00036712,2]
[310127767,1704376330523,-500.0,0.00036712,2]
[310127768,1704376330534,-500.0,0.00036712,2]
[310127769,1704376330545,-817.16,0.00036712,2]
[310127770,1704376330555,-500.0,0.00036712,2]
[310127771,1704376330566,-3601.75,0.00036712,2]
[310127772,1704376330576,-500.0,0.00036712,2]
[310127773,1704376330586,-500.0,0.00036712,2]
[310127774,1704376330596,-193.1923936,0.00036712,2]
[310127775,1704376330607,-500.0,0.00036712,2]
[310127776,1704376330618,-415.8228041,0.00036712,2]
[310127777,1704376330631,-500.0,0.00036712,2]
[310127778,1704376330642,-717.82,0.00036712,2]
[310127779,1704376330652,-669.95,0.00036712,2]
[310127780,1704376330663,-500.0,0.00036712,2]
[310127781,1704376330673,-250.12433746,0.00036712,2]
[310127782,1704376330684,-500.0,0.00036712,2]
[310127783,1704376330693,-591.79,0.00036712,2]
[310127784,1704376330703,-500.0,0.00036712,2]
[310127785,1704376330713,-406.48,0.00036712,2]
[310127786,1704376330722,-500.0,0.00036712,2]
[310127787,1704376330733,-500.0,0.00036712,2]
[310127788,1704376330743,-500.0,0.00036712,2]
[310127789,1704376330753,-1654.56,0.00036712,2]
[310127790,1704376330763,-516.6,0.00036712,2]
[310127791,1704376330773,-500.0,0.00036712,2]
[310127792,1704376330782,-500.0,0.00036712,2]
[310127793,1704376330792,-519.53,0.00036712,2]
[310127794,1704376330802,-500.0,0.00036712,2]
[310127795,1704376330812,-1518.1,0.00036712,2]
[310127796,1704376330822,-844.17,0.00036712,2]
[310127797,1704376330832,-500.0,0.00036712,2]
[310127798,1704376330842,-500.0,0.00036712,2]
[310127799,1704376330852,-500.0,0.00036712,2]
[310127800,1704376330863,-1154.94,0.00036712,2]
[310127801,1704376330874,-404.96591075,0.00036712,2]
[310127854,1704377431848,-1250.0,0.00027,3]
[310127855,1704377431858,-794.94144449,0.00029,3]
[310127856,1704377431905,-467.9168804,0.00029,3]
[310127857,1704377431924,-37.14167511,0.00029,3]
[310127858,1704377431933,-261.35876259,0.00029312,2]
[310127859,1704377432027,-108.68123741,0.00029312,2]
[310127860,1704377432037,-439.74076184,0.0003,2]
[310127861,1704377432086,-4350.8,0.0003,2]
[310127889,1704377438353,-545.1537,0.0003,2]
[310128159,1704377441296,-399.56949998,0.0003,2]
[310128265,1704377442878,-635.84998499,0.0003,2]
[310128266,1704377443100,-10024.39828794,0.0003,2]
[310128267,1704377443111,-7481.93127943,0.0003,2]
[310128268,1704377443121,-155.0,0.0003,2]
[310128269,1704377443131,-580.71892747,0.00030999,2]
[310128270,1704377443141,-2499.99999906,0.00031,3]
[310128271,1704377443151,-1350.0,0.00031,3]
[310128272,1704377443160,-192.69,0.00031145,2]
[310128273,1704377443170,-160.1,0.00031258,2]
[310128274,1704377443179,-807.31,0.00031261,2]
[310128275,1704377443189,-32.63199104,0.00031424,2]
[310128276,1704377443203,-478.48800896,0.00031424,2]
[310128277,1704377443213,-370.04,0.00031576,2]
[310128278,1704377443222,-885.5112114,0.000316,2]
[310128279,1704377443235,-446.7049274,0.000316,2]
[310128280,1704377443244,-250.0,0.00031699,2]
[310128281,1704377443254,-658.97568821,0.00031797,4]
[310128282,1704377443263,-203.25256508,0.00031798,4]
[310128283,1704377443275,-498.58732845,0.00031798,4]
[310128286,1704377443285,-167.30131155,0.000318,2]
[310128288,1704377443307,-382.74483522,0.000318,2]
[310128289,1704377446052,-742.95385323,0.000318,2]
[310128290,1704377446063,-567.21013366,0.000318,2]
[310128291,1704377446074,-2171.6,0.000318,2]
[310128327,1704378632019,-155.0,0.00026803,2]
[310128329,1704378632029,-155.0,0.00026804,2]
[310128331,1704378632039,-160.4201902,0.00026809,2]
[310128332,1704378632048,-1894.83845724,0.00026908,2]
[310128333,1704378632060,-479.70601001,0.00026908,2]
[310128334,1704378632072,-743.1772798,0.00026908,2]
[310128335,1704378632081,-426.83,0.00026909,2]
[310128336,1704378632091,-433.03893256,0.00026909,2]
[310128337,1704378632108,-136.81906744,0.00026909,2]
[310128338,1704378632127,-465.44955774,0.00027,3]
[310128339,1704378632144,-350.0,0.00027,3]
[310128340,1704378632157,-434.55044226,0.00027,3]
[310128341,1704378632167,-250.0,0.00028091,2]
[310128342,1704378632177,-250.0,0.00028114,2]
[310128343,1704378632187,-187.49,0.00028138,2]
[310128344,1704378632196,-406.17,0.00028162,2]
[310128345,1704378632206,-200.0,0.00028165,2]
[310128346,1704378632216,-197.02845673,0.00028208,2]
[310128347,1704378632229,-331.72154327,0.00028208,2]
[310128348,1704378632238,-387.62933819,0.00028228,2]
[310128349,1704378632250,-1129.24066181,0.00028228,2]
[310128350,1704378632260,-845.84,0.00028301,2]
[310128351,1704378632270,-150.0,0.00028486,2]
[310128352,1704378632280,-282.97,0.00028487,2]
[310128353,1704378632290,-203.56,0.00028487,2]
[310128354,1704378632301,-157.64,0.00028524,2]
[310128355,1704378632311,-6.26582944,0.00028534,2]
[310128356,1704378632329,-9245.67417056,0.00028534,2]
[310128358,1704378632339,-3822.58,0.00028579,2]
[310128360,1704378632349,-200.0,0.00028579,2]
[310128362,1704378632358,-500.0,0.00028586,2]
[310128364,1704378632369,-227.9,0.00028627,2]
[310128366,1704378632378,-157.64,0.00028648,2]
[310128368,1704378632388,-157.64,0.00028772,2]
[310128370,1704378632399,-425.03,0.00028829,2]
[310128372,1704378632410,-157.64,0.00028896,2]
[310128374,1704378632420,-1300.0,0.00029,3]
[310128376,1704378632430,-157.64,0.0002902,2]
[310128378,1704378632439,-157.64,0.00029144,2]
[310128380,1704378632448,-1303.78,0.00029167,2]
[310128382,1704378632459,-426.83,0.00029173,2]
[310128385,1704378632468,-154.16,0.00029235,2]
[310128387,1704378632478,-157.64,0.00029267,2]
[310128389,1704378632487,-1851.55,0.00029289,2]
[310128391,1704378632496,-157.64,0.00029391,2]
[310128393,1704378632506,-282.97,0.00029465,2]
[310128395,1704378632516,-152.01,0.000295,2]
[310128397,1704378632526,-157.64,0.00029515,2]
[310128399,1704378632536,-157.64,0.00029639,2]
[310128401,1704378632545,-157.64,0.00029763,2]
[310128403,1704378632555,-157.64,0.00029887,2]
[310128405,1704378632564,-1474.40739914,0.000299,2]
[310128407,1704378632573,-489.737,0.000299,2]
[310128409,1704378632583,-486.12582868,0.000299,2]
[310128411,1704378632593,-2426.4726,0.000299,2]
[310128413,1704378632602,-331.03,0.0002994,2]
[310128415,1704378632612,-232.11699184,0.00029999,2]
[310128417,1704378632625,-1502.23,0.0003,2]
[310128419,1704378632636,-580.71892747,0.0003,2]
[310128421,1704378632646,-136370.39196607,0.0003,2]
[310128424,1704378632660,-3299.2998371,0.0003,2]
[310128426,1704378632673,-10656.62911418,0.0003,2]
[310128429,1704378632686,-92243.31782496,0.0003,2]
[310128431,1704378632698,-250.0,0.0003,2]
[310128433,1704378632714,-417.278,0.0003,2]
[310128435,1704378632740,-25314.40015555,0.0003,2]
[310128436,1704378632754,-532.8244694,0.0003,2]
[310128437,1704378632766,-333.92943009,0.0003,2]
[310128438,1704378632779,-5958.5,0.0003,2]
[310128439,1704378632790,-498.696,0.0003,2]
[310128440,1704378632812,-845.23672834,0.0003,2]
[310128445,1704378638183,-85365.2372133,0.0003,2]
[310128446,1704378638196,-20872.96901382,0.0003,2]
[310128447,1704378638207,-1576.10650313,0.0003,2]
[310128448,1704378638219,-2853.91612875,0.0003,2]
[310128449,1704378638244,-14991.25419564,0.0003,2]
[310128450,1704378638310,-868.95680594,0.0003,2]
[310128451,1704378638331,-529.82133345,0.0003,2]
[310128452,1704378638388,-21151.2252903,0.0003,2]
[310128453,1704378638399,-5354.90527003,0.0003,2]
[310128454,1704378638412,-71258.64514071,0.0003,2]
[310128455,1704378638459,-770.87,0.0002999,10]
[310128456,1704378638468,-13670.664665,0.0003,2]
[310128457,1704378638484,-11995.00000005,0.0003,2]
[310128632,1704378640608,-276.29600004,0.0003,2]
[310128634,1704378640620,-564.56499991,0.0003,2]
[310128636,1704378640632,-587.16565053,0.0003,2]
[310128650,1704378640776,-1509.72832125,0.0003,2]
[310128652,1704378640788,-1391.13,0.0003,2]
[310128654,1704378640799,-696.65750437,0.0003,2]
[310128656,1704378640811,-11399.67549375,0.0003,2]
[310128660,1704378640835,-871.19482584,0.0003,2]
[310128662,1704378640847,-1143.59020439,0.0003,2]
[310128664,1704378640858,-61645.50925214,0.0003,2]
[310128667,1704378640869,-1176.54888468,0.0003,2]
[310128669,1704378640890,-15781.1219718,0.0003,2]
[310128672,1704378640901,-351.33923311,0.0003,2]
[310128674,1704378640913,-840.23121385,0.0003,2]
[310128678,1704378640944,-11605.1318669,0.0003,2]
[310128681,1704378640958,-2128.9660541,0.0003,2]
[310128683,1704378640969,-928.34287005,0.0003,2]
[310128740,1704378641574,-27782.83483626,0.0003,2]
[310128742,1704378641584,-53947.998,0.0003,2]
[310128744,1704378641594,-9264.44941884,0.0003,2]
[310128750,1704378641634,-568.07990224,0.0003,2]
[310128909,1704378643005,-627.46528697,0.0003,2]
[310128911,1704378643018,-5654.0551584,0.0003,2]
[310128915,1704378643030,-281.4624683,0.0003,2]
[310128917,1704378643038,-157.64,0.00030011,2]
[310128919,1704378643048,-511.48179581,0.00030128,4]
[310128922,1704378643057,-390.86,0.00030128,2]
[310128923,1704378643067,-150.0,0.0003026,2]
[310128926,1704378643076,-3915.58024355,0.00030278,4]
[310128928,1704378643088,-1680.96777774,0.00030278,4]
[310128930,1704378643099,-6369.00919692,0.00030278,4]
[310128933,1704378643122,-4748.27940185,0.00030278,4]
[310128935,1704378643132,-273.55023891,0.00030278,4]
[310128937,1704378643141,-2907.43670691,0.00030278,4]
[310128939,1704378643150,-1288.69585067,0.00030278,4]
[310128942,1704378643166,-507.53028692,0.00030278,4]
[310128944,1704378643178,-311.1074841,0.00030278,4]
[310128946,1704378643189,-1099.08943021,0.00030278,4]
[310128949,1704378643201,-61.43367789,0.00030278,4]
[310128951,1704378643210,-208.27927015,0.00030278,4]
[310128953,1704378643219,-340.33173018,0.00030278,4]
[310128955,1704378643229,-155.0,0.00030279,4]
[310128957,1704378643238,-704.72621,0.00030279,4]
[310128959,1704378643249,-894.29270153,0.00030279,4]
[310128961,1704378643259,-241.66712699,0.00030279,4]
[310128963,1704378643268,-293.75433028,0.00030279,2]
[310128967,1704378643292,-430.95872626,0.00030279,2]
[310128969,1704378643304,-155.37845086,0.00030279,4]
[310128971,1704378643313,-438.08377812,0.00030279,4]
[310128973,1704378643323,-284.18144408,0.0003028,4]
[310128975,1704378643332,-310.12290854,0.0003028,4]
[310128977,1704378643341,-2540.29765007,0.0003028,4]
[310128979,1704378643357,-3734.6371975,0.0003028,4]
[310128989,1704378643437,-1297.49151553,0.0003028,4]
[310128991,1704378643449,-694.5375725,0.0003028,4]
[310128993,1704378643461,-2168.95,0.0003028,4]
[310128996,1704378643473,-503.0,0.0003028,4]
[310128998,1704378643485,-650.86674797,0.0003028,4]
[310129000,1704378643496,-355.99659652,0.0003028,4]
[310129007,1704378643553,-3323.67667934,0.0003028,4]
[310129273,1704378646075,-195.25647007,0.00029999,2]
[310129275,1704378646085,-149.88800145,0.00029999,2]
[310129282,1704378646133,-453.52296331,0.00029999,2]
[310129284,1704378646145,-774.92228259,0.00029999,2]
[310129290,1704378646195,-257.60009668,0.00029999,2]
[310129292,1704378646207,-1351.185,0.00029999,2]
[310129295,1704378646219,-130.60340302,0.00029999,2]
[310129296,1704378646228,-2093.44099908,0.0003028,4]
[310129297,1704378646239,-20272.25615595,0.0003028,4]
[310129299,1704378646277,-80013.59354154,0.0003028,4]
[310129301,1704378646287,-318.21,0.0003028,2]
[310129303,1704378646297,-2264.0,0.00030281,2]
[310129305,1704378646307,-2893.0,0.00030281,2]
[310129307,1704378646316,-7243.55771855,0.00030281,2]
[310129309,1704378646327,-1802.19920836,0.00030281,2]
[310129411,1704378647100,-10580.24307309,0.00030281,2]
[310129413,1704378647111,-1303.577,0.00030281,2]
[310129415,1704378647124,-1101.129,0.00030281,2]
[310129418,1704378647135,-4002.437,0.00030281,2]
[310129420,1704378647147,-41885.0,0.00030281,2]
[310129422,1704378647159,-846.0,0.00030281,2]
[310129424,1704378647171,-1610.893,0.00030281,2]
[310129425,1704378647182,-2758.866,0.00030281,2]
[310129426,1704378647196,-942.0,0.00030281,2]
[310129427,1704378647215,-1257.0,0.00030281,2]
[310129429,1704378647239,-699.0,0.00030281,2]
[310129431,1704378647261,-2795.13,0.00030313,2]
[310129434,1704378647273,-152.01,0.00030425,2]
[310129436,1704378647284,-282.97,0.00030443,2]
[310129438,1704378647296,-524.14,0.00030646,2]
[310129440,1704378647308,-1350.0,0.00031,3]
[310129443,1704378647320,-624.01,0.00031083,2]
[310129445,1704378647332,-1486.94686728,0.00031164,2]
[310129447,1704378647343,-624.01,0.00031247,2]
[310129449,1704378647354,-152.01,0.00031349,2]
[310129451,1704378647366,-14741.60305987,0.000314,2]
[310129454,1704378647378,-624.01,0.0003141,2]
[310129456,1704378647390,-282.97,0.00031422,2]
[310129458,1704378647401,-426.83,0.00031437,2]
[310129461,1704378647415,-153.84,0.00031437,2]
[310129463,1704378647427,-3180.66829188,0.00031463,2]
[310129465,1704378647439,-624.01,0.00031574,2]
[310129468,1704378647450,-150.0,0.00031635,2]
[310129470,1704378647462,-1474.40739914,0.00031707,2]
[310129472,1704378647473,-150.59,0.00031714,2]
[310129474,1704378647484,-150.0,0.00031733,2]
[310129476,1704378647495,-624.01,0.00031738,2]
[310129479,1704378647507,-362.66800884,0.00031741,3]
[310129481,1704378647518,-10369.18986634,0.000318,2]
[310129483,1704378647529,-5719.4861141,0.000318,2]
[310129485,1704378647541,-923.65457267,0.000318,4]
[310129488,1704378647552,-1090.81313736,0.000318,4]
[310129490,1704378647564,-3000.0,0.000318,2]
[310129492,1704378647576,-1229.0,0.000318,2]
[310129494,1704378647587,-610.50329,0.000318,2]
[310129496,1704378647599,-19099.6763108,0.000318,2]
[310129499,1704378647610,-845.84,0.00031839,2]
[310129501,1704378647621,-151.69064531,0.000319,2]
[310129503,1704378647633,-624.01,0.00031901,2]
[310129505,1704378647644,-297.44616338,0.00032,4]
[310129508,1704378647656,-497.19036025,0.00032,4]
[310129510,1704378647666,-3000.0,0.00032,2]
[310129512,1704378647678,-179.82017932,0.00032,4]
[310129514,1704378647689,-161.0,0.00032,2]
[310129516,1704378647700,-406.4903675,0.00032,2]
[310129519,1704378647712,-3000.0,0.0003201,2]
[310129521,1704378647725,-3000.0,0.0003202,2]
[310129523,1704378647737,-3000.0,0.0003203,2]
[310129525,1704378647748,-3000.0,0.0003204,2]
[310129527,1704378647760,-3000.0,0.0003205,2]
[310129529,1704378647771,-3000.0,0.0003206,2]
[310129532,1704378647783,-624.01,0.00032065,2]
[310129534,1704378647794,-3000.0,0.0003207,2]
[310129536,1704378647807,-3000.0,0.0003208,2]
[310129539,1704378647819,-362.66800884,0.00032084,3]
[310129541,1704378647830,-3000.0,0.0003209,2]
[310129543,1704378647842,-500.0,0.00032093,2]
[310129545,1704378647853,-3000.0,0.000321,2]
[310129547,1704378647864,-3000.0,0.0003211,2]
[310129550,1704378647875,-3000.0,0.0003212,2]
[310129552,1704378647886,-3000.0,0.0003213,2]
[310129554,1704378647898,-151.69064531,0.00032132,2]